Workbook

Sheet UiA Spørsmål Ane (hidden)
B2: Spørsmål | C2: Kommentarer og svar | D2: Videre diskusjon | E2: Utført?
B3: Meruttelling i budsjettmodellen, hva sier denne oss?
B5: Sats for utleie på 1100, er dette noe fra leiestedsmalen? | C5: Ja, det er antakeligvis fremkommet ved å legge inn et eksempel | D5: Må finne ut om leiestedsmalen er aktuell å benytte
C6: Auditorium med 32 plasser | D6: Den tar utgp i så lave priser som mulig, jfr. ikke økonomisk aktivitet
C7: Beløp hentet fra arket "Fakturarekvisisjon" | D7: Ta et møte på dette: Geir Sune, Harry og Kristian?
B9: Utd. Årsverk (fordeling) er dette heltidsekvivalent (ingrid) og ikke ansatt?
B11: Skal definere ant. Årsverk som jobber med EVU, og legge det på utdanningsårsverk (nevner). Men blir dette egentlig korrekt?
B14: Endre:
B16: NB! Presiser at det er ansatte det gjelder med utdanningsårsverk.
B19: Elementer fra møtet med Ingrid:
B21: IK-student:
B22: Burde egentlig bare ta bort hele kolonnen for stp. Og kun ha kostnadesdriverne KURS og DELTAKERE
B23: Studieadministrasjonen = trekk ut kostnadene ved internasjonal avdeling
B24: Universitetsbiblioteket = burde kunne trekke ut mesteparten?
B26: Fordelings% mellom de 3 kostnadsdriverne:
B27: Fakultetsadministrasjonen: her burde det være 50/50 mellom kurs og deltaker for å få frem fokus på kostnader ved kurs.
B28: Øvrig felles: 100% på kurs
B29: Studieadministrasjon: her burde det være 50/50 kurs og deltaker
B30: IT: mer over på kurs pga fronter og system
B32: Strategi og besluutning om kurs skal gjennomføres:
B33: Hun ønsker et større fokus på strategisk tenkning når det kommer til beslutning av om et kurs skal gjennomføres eller ikke.
B34: EVU = et supplement (non stop) til hovedvirksomheten. Det må gjenspeiles i strategisk tenkning.
B35: Nå er det slik at det må være break even for at et kurs skal gjennomføres. Mangler det en student, avlyses det, og dette er ikke godt for noe. (Omdømme, studenter, m.m.)
B36: Dette kunne vært et bidrag som etter hvert ville gitt oss resultat, men fordi man er så firkantede nå, så avlyses det.
B37: Man burde se på det som et bidrag selv om det ikke gir full dekning av kostnader
B38: hvis man nå har 9 og trenger 10, så avlyses det
B39: Dette burde det opp en strategisk diskusjon på, på ledelsesnivå.
B40: Eksempelvis hvis man dekker de mesteparten av direkte kostnader, så la det gå, se bort fra flere av de indirekte kostnadene.
B41: Dette burde være ok hvis det gir et positivt bidrag, og kan gi resultater senere. Hun mener mye tapes av at man ser firkantet på dette.
B42: Vi må tenke mer DB. Beslutningspkt. Bør være lenger oppe i malen. Med det menes at så lenge visse direkte kostnader er dekket, bør det være ok.
B44: Annet:
B45: Leiested: det burde være ulike priser for dag/kveld (og rimligere for EVU om de benytter det på kveld). Hun mener kostnad bør bæres av kjernen, og EVU få det billigere. Dette fordi de da benytter ledig kapasitet. Men hva med strøm? Ventilasjon? Låsing? Vakter? M.m.?
B46: Fast kostnad per kurs: dette er bra, og vil få en vridning mot større kurs, evt. en sammenslåing av kurs.

Sheet UiA Spørsmål (hidden)
A1: Spørsmål | B1: Svar
A2: Hvilke kostnader innebærer nettstudie? | B2: Kostbar utvikling, spesielt for 1 nettstudie. | C2: Forslår at vi tar ut dette. | D2: Hør med EVU | E2: Kostnad for utvikling må inn i timeberegning.
A3: Hva er "intern lønnskostnad, faglig"? | B3: Brukes kontoer, generelt? - lag tabell
A4: Leie av lokaler internt. Hvorfor? Dobbeltføring - kommer inn i kapital og drift på både ansatt og student | B4: Spør Randi Hasle. Spesielle forhold rundt fakturering av intern leie. | D4: Kan løses ved å sette husleie til 100%
A5: Hva med om kurset "kun" har eksterne forelesere - husleie? | B5: Ok. Dette dekkes. Ingen ekstra husleie for eksterne.
A6: Kompetansevurdering og opptaksbehandling - sats og prosent? | B6: Ok. Skjuler dette fra mal, legges inn i
A8: Hvordan gjøres det med foreleser intern/ekstern hvis FLERE enn 1/2? | B8: Hør med EVU om nødvendig
A9: Ekstern foreleser og faglig utvikling - når brukes dette? (motor - gammel) | B9: tar vekk
A10: Hvis "prosenter" - hvem skal være med å bestemme dette? | B10: Tar som det kommer..
A11: Fordeling i basis, og prosenter i beregning av IK | B11: 208040605050100. nei
A12: IK student - hvordan gjør vi dette. Veldig høye kostnader om man ikke ser på marginaler. | B12: vente til fordeling i basis er ferdig.
A13: Stp vs ikke stp | B13: fordeling må gjøres. Ellers ok.
A14: Husleie og drift settes til null pga konkurransemessige hensyn. ??? | B14: Ok. Fjernundervisning. KUN hvis oppdrag - ta betalt for lokaler.
A15: Fakultetsadm i basis - hvilke tall skal brukes her?
A16: Er det ok å ta bort fondsavsetninger? Både på fellesadm og fakultetsadm BASIS | B16: Vi tar med, men kun på fellesadm. Avhengig av avskrivninger!!!
A17: Er det ok å ta bort satsningstiltak fakultet? BASIS | B17: Ja. Disse inkluderes i regnskapet.
A18: Hva slags type årsverk skal brukes i beregning? | B18: Ansatt/deltid/prosentstilling:A, timelærer: C
A19: Hvis C-tabell brukes, så er et årsverk 1950 timer. | B19: bruker 1875. Pensjonsutgift for både i og e
A20: Sats for prosjektadministrasjon bør være likt beregnet som for forelesere etc? | B20: ok
A21: Flytte opp prosjektadm til under undervisning? Beregne AGA, FP og Pensjon for seg?
A22: Hvorfor skal man kunne velge lønnstabell ? (A/C) | B22: ok
A23: Er det et poeng at de skal gi forskjellige svar??? | B23: ok
A24: Bedre å holde seg til en tabell? | B24: ok
A25: C-tabell tar ikke hensyn til bev hd og sykefravær. Dette blir lite korrekt? | B25: ok
A26: C-tabell til Eksterne og A-tabell til Interne. | B26: ok
A27: Intern foreleser | B27: timelønn + 10%
A28: ekstern foreleser | B28: timelønn
A29: Eksterne - rad 64/65 ???? Kan disse erstatte E/I, eller motsatt? | B29: ha begge
A30: Kostnadsbærere - ansatte. Hvorfor 599? BASIS
A31: Kan vi ta vekk valg av lønnstabell? (Automatisk A hvis intern. C hvis ekstern og timer under 20% av 1875.???)
A32: Hva slags IK skal beregnes på eksterne forelesere? (kan vi utelukke dette?)
A33: Det skal ikke AGA på ENK. Oppgplikt | B33: ok
A34: Alle blir kompetansevurdert
A36: 08.02.2016 - møte med Harry, Daniel og Ane
A37: IK studenter - denne satsen er høy. Skal IK være proporsjonal med stp?
A38: IK for kurs uten stp | B38: Kan vi legge inn "liksomstp"? Har veldig mye å si for IK student.
A39: IK for eksterne. Både vit og admtek
A40: Ift. økonomiavd og eksterne. Hvor mye av arbeidstid på lønn går med til eksterne? "Systemet løser de fast ansatte" | C40: Ca 60% eksterne, 40% interne | D40: Hvordan gjør vi dette?
A41: "5%en" gjelder vel i hovedsak for prosjekter om etablering av særskilt forskningsmessig infrastruktur?
A42: Jeg finner ikke noe om "eksterne" i dokumentet?
A45: Høre med Ingvild Mulen, Marianne Ørn ift studieadm.
A46: Gjøre noe med årsverkene. Kun ha en sats!!
A47: Vise hvilke midler som går tilbake til fakultet.
A51: Møte …..

Sheet UiA Informasjon (hidden)
M2: Denne må ferdigstilles

Sheet UiA_Gjenstår (hidden)
A1: Dette nå gjøres fremover:
A2: Legge inn EVU-punkt med indirekte kostnader i "Budsjettutregning og kostnadsberegning på prosjekter" | J2: Fakultet | K2: Fått data? | L2: Ressurser til EVU (årsverk)
A3: Få svar fra alle fakultet ang. direkte stillinger som går til studiesiden, differensiert på ordinære og EVU-studenter. | J3: HUMPED | K3: ok | L3: 1.8
A4: Avklaring ift. eksternt personell og indirekte kostnader. | J4: HH
A5: Nettstudie - hvordan belastes dette IT-avdelingen? | J5: SAMVIT
B6: Er det ting vi har glemt? Ting vi må legge til? | J6: HI
J7: TEKREAL
J8: KUNST
J9: LU ?
A10: Implementering av mal | J10: Sum | L10: =SUM(L3:L9) -> 1.8
A14: Uttrekk fra fakultetsadministrasjon:
B15: HUMPED | I15: Fakultetsadministrasjonen
I16: Fakultet:
I18: Navn | J18: Stillingsprosent | K18: Herav ordinære studier | L18: Herav EVU-studier
I19: Ane Fiskebekk | J19: 100 | K19: 1
I20: Daniel Johansson | J20: 100 | K20: 0.7 | L20: 0.3
A28: Vi kan her trekke fra 5,8 årsverk fra fakultet, i IK student.
A29: Legger på 1,8 på utdanningsårsverk, 345,1+1,8 | I29: Sum stillinger | J29: =SUM(J19:J28)/100 -> 2 | K29: =SUM(K19:K28) -> 1.7 | L29: =SUM(L19:L28) -> 0.3

Sheet Klassifiseringsskjema
A1: Klassifiseringsskjema for etter- og videreutdanning (EVU)
B3: Alle EVU-kurs må klassifiseres fordi dette har betydning for hvordan kurset skal regnskapsføres.
B4: Nedenfor angis 1) ett av fire alternativer, samt 2) en vurdering av EVU-type
A6: Ordforklaringer:
B7: BFV | C7: Bevilgningsfinansiert virksomhet (midler fra statsbudsjettet)
B8: BOA | C8: Bidrags- og oppdragsfinansiert aktivitet
A10: 1 EVU-tilbud, kryss av ved ett av 4 alternativer | D10: Klassifisering | E10: MVA
B12: med | C12: kursavgift | D12: Salg (BFV) | E12: Forutsatt undervisning; utenfor MVA-loven
C13: uten annen ekstern finansiering
C14: eventuelt delfinansiering fra egen institusjon (dokumentasjon må foreligge)*
B16: med | C16: kursavgift | D16: Delt, både bidrag BOA (bidrag/tilskudd) og salg BFV (kursavgift) | E16: Forutsatt undervisning; utenfor MVA-loven
C17: og bidrag/tilskudd uten krav om motytelse fra ekstern bidragsyter
C18: det foreligger tilskuddsbrev fra ekstern kilde
C19: det foreligger dokumentert faglig interesse som gjelder bidraget/tilskuddet
C20: eventuelt delfinansiering fra egen institusjon (dokumentasjon må foreligge)*
C21: kurset er åpent for allmenheten
B24: uten | C24: kursavgift | D24: BFV | E24: Ikke aktuelt (ingen ekstern inntekt)
C25: ingen ekstern finansiering
B27: uten | C27: kursavgift | D27: Oppdrag BOA | E27: Forutsatt undervisning; utenfor MVA-loven
C28: finansiert i sin helhet av ekstern oppdragsgiver
C29: kontrakt/skriftlig avtale med ekstern oppdragsgiver foreligger
C30: det foreligger dokumentert faglig interesse
C31: kurset er ikke åpent for allmenheten
C32: kurset skal ikke delfinansieres av egen institusjon
A35: * Delfinansiering av kurs fra egen institusjon:
A36: Ihht brev av 24.05.2017 fra KD til UHR, så vil man bare i kun svært begrensede tilfeller ha mulighet til å delfinansiere kurs definert som salg med egne midler. Eksempler på tilfeller hvor man kan delfinansiere slike kurs kan være oppstart av helt nye kurs hvor man vil få ekstra kostnader ved å etablere seg i markedet. Vurdering av faglig interesse og gjennomføring av institusjonens samfunnsoppdrag er også forhold som kan gi mulighet til å delfinansiere salgskurs. Det er viktig at disse vurderingene dokumenteres godt.
A41: UHR har opprettet en arbeidsgruppe som bes om å utrede forståelsen av regelverket for finansiering
A42: av etter- og videreutdanniongsvirksomhet i UH-sektoren.
A43: 2 Valg av type EVU (bidrag, oppdrag eller salg), celle D46
C45: Valgboks som påvirker kalkulasjonsmalen => | D45: Oppdrag
B48: Signert: | D48: den:

Sheet Budsjettmodell for EVU
AA2: =R30 -> 325000 | AB2: =B30 -> Totale inntekter | AC2: hovedtall til INFO
AA3: =TotaleKostnader -> 257701.3418 | AB3: =B82 -> Totale kostnader | AC3: hovedtall til INFO
AA4: =R84 -> 67298.65821 | AB4: =B84 -> Resultat | AC4: hovedtall til INFO
B7: Prosjektnavn | C7: Typisk kurs | J7: Varighet | L7: 2018-03-20 | N7: til og med | O7: 2018-06-30
B8: Prosjektnummer | C8: 99999 | L8: Budsjetteringsdato | M8: 2018-01-21
B9: Budsjettenhet (kostnadssted) | C9: 9999
B11: Antall deltakere | C11: 25
B12: Studentbetaling pr student (kr) | C12: 13000 | F12: =IF(C19>0,"som tilsvarer "&C12/Antall_stp&" kr/studiepoeng","") -> som tilsvarer 1300 kr/studiepoeng
B13: Fikk UiA prosjektet som følge av anbudsrunde? | C13: Nei | F13: SKJULES: UiA - kun til INFO - heretter del av "Vurdering Prosjekttype"? | AA13: Vurderes fjernet
B14: Prosjekttype (se egen arkfane) | C14: =Klassifiseringsskjema!D45 -> Oppdrag | F14: NB! Valg av prosjekttype SKAL dokumenteres og gjøres i arkfanen "Klassifiseringsskjema"
B15: Nettstudie? | C15: Nei | F15: SKJULES: UiA - kun til INFO - har ingen effekt ved valgt tilnærming (kun SP), fjerne? | AA15: Vurderes fjernet
B16: Studiepoenggivende | C16: Ja
B18: Fylles ut for studiepoenggivende kurs:
B19: Antall studiepoeng | C19: 10 | H19: UH finansieringsprosent (FS) | L19: =IF(AND(C16="Nei",C19>0.0001),"OBS! Studiepoenggivende eller ei (celle C16)? Samsvare med Antall studiepoeng (celle c19)","") -> 
B20: Studiekategori (UiA spesifikk) | C20: T1 | H20: UH finansieringsprosent (FS) | AA20: UiA-internt, skjule rad
B21: KDs-finansieringskategori (info egen arkfane) | C21: F | H21: =UiA___finansiert__FS -> 0.2040816327 | J21: =IF(AND(C14="Oppdrag",H21>0.0001),"OBS! UHs finansiering skal være 0% for oppdragsprosjekter","") -> OBS! UHs finansiering skal være 0% for oppdragsprosjekter
B22: Inntekter | H22: Konto | Q22: Direkte kostnad | R22: Budsjett | S22: Indirekte kostnader
B23: =IF(C14="Oppdrag","Prosjektinntekter avgiftsfrie (oppdragsgiver)","Prosjektinntekter avgiftsfrie (bidragsyter)") -> Prosjektinntekter avgiftsfrie (oppdragsgiver)
B24: Studieavgifter/kursbetaling | R24: =Antall_deltakere*C12 -> 325000
B25: Eksamensinntekter
B26: Andre inntekter
B27: Interne tilskudd (egenfinansiering)
B28: Fyll inn
B29: Fyll inn
B30: Totale inntekter | R30: =SUM(R23:R29) -> 325000
N31: ÅRSVERK
B32: Undervisning | D32: Vitenskapelig eller Tek/Adm | F32: Ekstern/Intern | H32: Konto | J32: Grupper | K32: Timer | L32: Lønnstabell | M32: Lønnstrinn | N32: Sats | O32: G faktor | P32: Arbeids-timer | Q32: Direkte kostnad | R32: Undervisnings-kostnad | S32: SentralAdm | T32: FakAdm | U32: Arbeidsplass
B33: Honorar forelesere | D33: VIT | F33: I | J33: 1 | K33: 45 | L33: A | M33: 70 | N33: =IF(L33="C",(SUMIF('Input C-tabellen'!A:A,$M33,'Input C-tabellen'!B:B)),(SUMIF('Input A-tabellen'!A:A,$M33,'Input A-tabellen'!C:C)/Årsv_Høy)) -> 382.985258 | O33: 3 | P33: =IF(ISBLANK(K33),0,K33*O33) -> 135 | Q33: =IFERROR(J33*N33*P33,0) -> 51703.00983 | R33: =SUM(Q33,S33:U33) -> 82046.70208 | S33: =SUMPRODUCT(--(IKTabell1[E/I]=$F33),--(IKTabell1[Vit eller T/A]=$D33),IKTabell1[Felles])*P33 -> 11431.68264 | T33: =SUMPRODUCT(--(IKTabell1[E/I]=$F33),--(IKTabell1[Vit eller T/A]=$D33),IKTabell1[Fakultet])*P33 -> 6302.170805 | U33: =SUMPRODUCT(--(IKTabell1[E/I]=$F33),--(IKTabell1[Vit eller T/A]=$D33),IKTabell1[Arbeidsplass])*P33 -> 12609.8388
B34: Honorar forelesere | D34: VIT | F34: E | N34: =IF(L34="C",(SUMIF('Input C-tabellen'!A:A,$M34,'Input C-tabellen'!B:B)),(SUMIF('Input A-tabellen'!A:A,$M34,'Input A-tabellen'!C:C)/Årsv_Høy)) -> 0 | P34: 0 | Q34: 0 | R34: =SUM(Q34,S34:U34) -> 0 | S34: =SUMPRODUCT(--(IKTabell1[E/I]=$F34),--(IKTabell1[Vit eller T/A]=$D34),IKTabell1[Felles])*P34 -> 0 | T34: =SUMPRODUCT(--(IKTabell1[E/I]=$F34),--(IKTabell1[Vit eller T/A]=$D34),IKTabell1[Fakultet])*P34 -> 0 | U34: =SUMPRODUCT(--(IKTabell1[E/I]=$F34),--(IKTabell1[Vit eller T/A]=$D34),IKTabell1[Arbeidsplass])*P34 -> 0
B35: Honorar sensur | D35: VIT | F35: I | J35: 1 | K35: 30 | L35: A | M35: 70 | N35: =IF(L35="C",(SUMIF('Input C-tabellen'!A:A,$M35,'Input C-tabellen'!B:B)),(SUMIF('Input A-tabellen'!A:A,$M35,'Input A-tabellen'!C:C)/Årsv_Høy)) -> 382.985258 | O35: 1 | P35: 30 | Q35: 11489.55774 | R35: 18232.60046 | S35: =SUMPRODUCT(--(IKTabell1[E/I]=$F35),--(IKTabell1[Vit eller T/A]=$D35),IKTabell1[Felles])*P35 -> 2540.373921 | T35: =SUMPRODUCT(--(IKTabell1[E/I]=$F35),--(IKTabell1[Vit eller T/A]=$D35),IKTabell1[Fakultet])*P35 -> 1400.482401 | U35: =SUMPRODUCT(--(IKTabell1[E/I]=$F35),--(IKTabell1[Vit eller T/A]=$D35),IKTabell1[Arbeidsplass])*P35 -> 2802.1864
B36: Honorar sensur | D36: VIT | F36: E | N36: =IF(L36="C",(SUMIF('Input C-tabellen'!A:A,$M36,'Input C-tabellen'!B:B)),(SUMIF('Input A-tabellen'!A:A,$M36,'Input A-tabellen'!C:C)/Årsv_Høy)) -> 0 | P36: 0 | Q36: 0 | R36: 0 | S36: =SUMPRODUCT(--(IKTabell1[E/I]=$F36),--(IKTabell1[Vit eller T/A]=$D36),IKTabell1[Felles])*P36 -> 0 | T36: =SUMPRODUCT(--(IKTabell1[E/I]=$F36),--(IKTabell1[Vit eller T/A]=$D36),IKTabell1[Fakultet])*P36 -> 0 | U36: =SUMPRODUCT(--(IKTabell1[E/I]=$F36),--(IKTabell1[Vit eller T/A]=$D36),IKTabell1[Arbeidsplass])*P36 -> 0
B37: Veiledning (gruppe/individuelt) | D37: VIT | F37: I | J37: 1 | L37: A | M37: 70 | N37: =IF(L37="C",(SUMIF('Input C-tabellen'!A:A,$M37,'Input C-tabellen'!B:B)),(SUMIF('Input A-tabellen'!A:A,$M37,'Input A-tabellen'!C:C)/Årsv_Høy)) -> 382.985258 | O37: 2 | P37: 0 | Q37: 0 | R37: 0 | S37: =SUMPRODUCT(--(IKTabell1[E/I]=$F37),--(IKTabell1[Vit eller T/A]=$D37),IKTabell1[Felles])*P37 -> 0 | T37: =SUMPRODUCT(--(IKTabell1[E/I]=$F37),--(IKTabell1[Vit eller T/A]=$D37),IKTabell1[Fakultet])*P37 -> 0 | U37: =SUMPRODUCT(--(IKTabell1[E/I]=$F37),--(IKTabell1[Vit eller T/A]=$D37),IKTabell1[Arbeidsplass])*P37 -> 0
B38: Gi respons på internett | D38: VIT | F38: I | J38: 1 | L38: A | M38: 70 | N38: =IF(L38="C",(SUMIF('Input C-tabellen'!A:A,$M38,'Input C-tabellen'!B:B)),(SUMIF('Input A-tabellen'!A:A,$M38,'Input A-tabellen'!C:C)/Årsv_Høy)) -> 382.985258 | O38: 1 | P38: 0 | Q38: 0 | R38: 0 | S38: =SUMPRODUCT(--(IKTabell1[E/I]=$F38),--(IKTabell1[Vit eller T/A]=$D38),IKTabell1[Felles])*P38 -> 0 | T38: =SUMPRODUCT(--(IKTabell1[E/I]=$F38),--(IKTabell1[Vit eller T/A]=$D38),IKTabell1[Fakultet])*P38 -> 0 | U38: =SUMPRODUCT(--(IKTabell1[E/I]=$F38),--(IKTabell1[Vit eller T/A]=$D38),IKTabell1[Arbeidsplass])*P38 -> 0
B39: Faglig ledelse | D39: VIT | F39: I | J39: 1 | L39: A | M39: 70 | N39: =IF(L39="C",(SUMIF('Input C-tabellen'!A:A,$M39,'Input C-tabellen'!B:B)),(SUMIF('Input A-tabellen'!A:A,$M39,'Input A-tabellen'!C:C)/Årsv_Høy)) -> 382.985258 | O39: 1 | P39: 0 | Q39: 0 | R39: 0 | S39: =SUMPRODUCT(--(IKTabell1[E/I]=$F39),--(IKTabell1[Vit eller T/A]=$D39),IKTabell1[Felles])*P39 -> 0 | T39: =SUMPRODUCT(--(IKTabell1[E/I]=$F39),--(IKTabell1[Vit eller T/A]=$D39),IKTabell1[Fakultet])*P39 -> 0 | U39: =SUMPRODUCT(--(IKTabell1[E/I]=$F39),--(IKTabell1[Vit eller T/A]=$D39),IKTabell1[Arbeidsplass])*P39 -> 0
B40: Annen timebetalt arbeidshjelp (eks. IT-støtte) | D40: T/A | F40: I | J40: 1 | L40: A | M40: 60 | N40: =IF(L40="C",(SUMIF('Input C-tabellen'!A:A,$M40,'Input C-tabellen'!B:B)),(SUMIF('Input A-tabellen'!A:A,$M40,'Input A-tabellen'!C:C)/Årsv_Høy)) -> 317.7518428 | O40: 1 | P40: 0 | Q40: 0 | R40: 0 | S40: =SUMPRODUCT(--(IKTabell1[E/I]=$F40),--(IKTabell1[Vit eller T/A]=$D40),IKTabell1[Felles])*P40 -> 0 | T40: =SUMPRODUCT(--(IKTabell1[E/I]=$F40),--(IKTabell1[Vit eller T/A]=$D40),IKTabell1[Fakultet])*P40 -> 0 | U40: =SUMPRODUCT(--(IKTabell1[E/I]=$F40),--(IKTabell1[Vit eller T/A]=$D40),IKTabell1[Arbeidsplass])*P40 -> 0
B41: Fyll inn | N41: =IF(L41="C",(SUMIF('Input C-tabellen'!A:A,$M41,'Input C-tabellen'!B:B)),(SUMIF('Input A-tabellen'!A:A,$M41,'Input A-tabellen'!C:C)/Årsv_Høy)) -> 0 | P41: 0 | Q41: 0 | R41: 0 | S41: =SUMPRODUCT(--(IKTabell1[E/I]=$F41),--(IKTabell1[Vit eller T/A]=$D41),IKTabell1[Felles])*P41 -> 0 | T41: =SUMPRODUCT(--(IKTabell1[E/I]=$F41),--(IKTabell1[Vit eller T/A]=$D41),IKTabell1[Fakultet])*P41 -> 0 | U41: =SUMPRODUCT(--(IKTabell1[E/I]=$F41),--(IKTabell1[Vit eller T/A]=$D41),IKTabell1[Arbeidsplass])*P41 -> 0
B42: Fyll inn | N42: =IF(L42="C",(SUMIF('Input C-tabellen'!A:A,$M42,'Input C-tabellen'!B:B)),(SUMIF('Input A-tabellen'!A:A,$M42,'Input A-tabellen'!C:C)/Årsv_Høy)) -> 0 | P42: 0 | Q42: 0 | R42: 0 | S42: =SUMPRODUCT(--(IKTabell1[E/I]=$F42),--(IKTabell1[Vit eller T/A]=$D42),IKTabell1[Felles])*P42 -> 0 | T42: =SUMPRODUCT(--(IKTabell1[E/I]=$F42),--(IKTabell1[Vit eller T/A]=$D42),IKTabell1[Fakultet])*P42 -> 0 | U42: =SUMPRODUCT(--(IKTabell1[E/I]=$F42),--(IKTabell1[Vit eller T/A]=$D42),IKTabell1[Arbeidsplass])*P42 -> 0
B44: Feriepenger | J44: 0.12 | Q44: =SUM(Q33:Q42)*J44 -> 7583.108108 | R44: =Q44 -> 7583.108108
B45: Pensjonsutgifter | J45: 0.115 | Q45: =SUM(Q33:Q42,Q44)*Pensjon -> 8139.202703 | R45: =Q45 -> 8139.202703 | X45: Skjules
B46: Arbeidsgiveravgift | J46: 0.141 | Q46: =SUM(Q33:Q42,Q44,Q45)*J46 -> 11126.99785 | R46: =Q46 -> 11126.99785 | X46: Kontroller
K47: sum | N47: snitt | P47: sum | X47: Fellesadm | Y47: Fakadm | Z47: Arbeidsplass
B48: Sum undervisningskostnader på fakultet (inkl. IK) | K48: =SUM(K33:K42) -> 75 | N48: =IFERROR(R48/K48,0) -> 1695.048149 | P48: =SUM(P33:P42) -> 165 | Q48: =SUM(Q33:Q47) -> 90041.87623 | R48: =SUM(R33:R47) -> 127128.6112 | S48: =SUM(S33:S47) -> 13972.05657 | T48: =SUM(T33:T47) -> 7702.653206 | U48: =SUM(U33:U47) -> 15412.0252 | X48: =(S48/$P$48) -> 84.6791307 | Y48: =(T48/$P$48) -> 46.6827467 | Z48: =(U48/$P$48) -> 93.40621334
X49: ='IK Ansatt'!H40 -> 84.6791307 | Y49: ='IK Ansatt'!H39 -> 46.6827467 | Z49: ='IK Ansatt'!H41 -> 93.40621334
K50: Timer | N50: Sats | X50: =X48*Årsv_Høy -> 137857.6248 | Y50: =Y48*Årsv_Høy -> 75999.51163 | Z50: =Z48*Årsv_Høy -> 152065.3153
B51: Åpningsarrangement/kunstneriske innslag | H51: * | R51: =K51*N51 -> 0 | X51: =IF(X49=X48,"Ok","FEIL!") -> Ok | Y51: =IF(Y49=Y48,"Ok","FEIL!") -> Ok | Z51: =IF(Z49=Z48,"Ok","FEIL!") -> Ok | AA51: UiA-internt, skjule rad
B52: Undervisning faktura enkeltmannsforetak (oppg.pl.) | R52: =K52*N52 -> 0
B53: Undervisning faktura firma (ikke oppg.pl.) | R53: =K53*N53 -> 0
B54: Sum undervisningskostnader eksternt | K54: =IF(SUM(K51:K53)<=0,"-",SUM(K51:K53)) -> - | R54: =SUM(R51:R53) -> 0
B56: Sum undervisningskostnader | R56: =SUM(R54,R48) -> 127128.6112 | S56: =R56/TotaleKostnader -> 0.4933176146 | T56: av tot. kost.
B58: Prosjektadministrasjon (70/82) | H58: Konto
K59: Timer | L59: Ltab. | M59: Ltr. | N59: Sats
B60: Prosjektledelse | D60: T/A | F60: I | K60: 0 | L60: A | M60: 60 | N60: =(IF(L60="C",(SUMIF('Input C-tabellen'!A:A,$M60,'Input C-tabellen'!B:B)),IF(L60="A",(SUMIF('Input A-tabellen'!A:A,$M60,'Input A-tabellen'!C:C)/Årsv_Lav),"Feil")))*(1+Pensjon)*(1+AGA)*(1+FP) -> 452.7584999 | Q60: =K60*N60 -> 0 | R60: =SUM(Q60,S60:U60) -> 0 | U60: =SUMPRODUCT(--(IKTabell1[E/I]=$F60),--(IKTabell1[Vit eller T/A]=$D60),IKTabell1[Arbeidsplass])*K60 -> 0
B61: Prosjektkonsulent | D61: T/A | F61: I | K61: 0 | L61: A | M61: 50 | N61: =(IF(L61="C",(SUMIF('Input C-tabellen'!A:A,$M61,'Input C-tabellen'!B:B)),IF(L61="A",(SUMIF('Input A-tabellen'!A:A,$M61,'Input A-tabellen'!C:C)/Årsv_Lav),"Feil")))*(1+Pensjon)*(1+AGA)*(1+FP) -> 382.0396002 | Q61: =K61*N61 -> 0 | R61: =SUM(Q61,S61:U61) -> 0 | U61: =SUMPRODUCT(--(IKTabell1[E/I]=$F61),--(IKTabell1[Vit eller T/A]=$D61),IKTabell1[Arbeidsplass])*K61 -> 0
B62: Sum kostnader prosjektadministrasjon (ekskl. IK) | K62: =SUM(K60:K61) -> 0 | Q62: =SUM(Q60:Q61) -> 0 | R62: =SUM(R60:R61) -> 0 | S62: =R62/TotaleKostnader -> 0 | T62: av tot. kost. | U62: =SUM(U60:U61) -> 0
B64: Andre direkte prosjektkostnader (60) | H64: Konto | J64: Kommentarer
B65: Reisekostnader | R65: 0
B66: Bevertning (NB, husk deltakerliste) | R66: 0
B67: Kursmateriell, bøker | R67: 0
B68: Trykksak, brosjyrer | H68: 73* | R68: 0 | AA68: UiA-internt, skjule rad
B69: Annonsering og markedsføring (inkl. trykksaker, brosjyrer mm) | R69: 0
B70: Andre driftskostnader | R70: 0
B71: Sum andre prosjektkostnader | R71: =SUM(R65:R70) -> 0 | S71: =R71/TotaleKostnader -> 0 | T71: av tot. kost.
B73: Leiestedskostnader | H73: Konto | J73: Lokaltype | O73: Timer | P73: Sats
B74: Leiested, internt | C74: =IF(Prosjekttype=O14,"Må fylles ut ved oppdrag","") ->  | J74: Aud, 32 plasser | O74: 30 | P74: 1100 | R74: =P74*O74 -> 33000 | S74: Sats er hentet fra leiestedsmodell
B75: Leiested, eksternt | R75: =P75*O75 -> 0
B76: Sum leiestedskostnader | J76: =IF(O76<0.8*SUM(K33:K34,K52,K53),"Leietimer er under 80% av undervisningstimer.","") -> Leietimer er under 80% av undervisningstimer. | O76: =SUM(O74:O75) -> 30 | R76: =SUM(R74:R75) -> 33000 | S76: =R76/TotaleKostnader -> 0.1280552122 | T76: av tot. kost.
B78: Indirekte kostnader, student | S78: Fellesadm | T78: Fakadm | U78: Arbeidsplass
B79: Studentsats | R79: =SUM(S79:T79) -> 97572.73059 | S79: =IF(C16="Ja",'IK Student'!E47,0) -> 67947.95021 | T79: =IF(C16="Ja",'IK Student'!E46,0) -> 29624.78038
B80: INFO - Sats avhenger kun av antall studiepoeng | S80: =R79/TotaleKostnader -> 0.3786271733 | T80: av tot. kost.
B82: Totale kostnader | R82: =R56+R71+R62+R76+R79 -> 257701.3418 | S82: 1 | T82: totale kostnader
B84: Resultat | R84: =R30-R82 -> 67298.65821 | S84: =IF(R84>0,"Kalkulert overskudd","Kalkulert underskudd") -> Kalkulert overskudd
B85: Sikkerhetsmargin (%-vis svikt i budsjettert antall deltakere) | J85: 0.05 | R85: =R30*J85 -> 16250 | AA85: UiA-internt, skjule rad
B86: Resultatkrav til prosjektet (5 % av direkte lønnskostnader) | J86: 0.05 | R86: =(Q48+Q62+Q54)*J86 -> 4502.093811 | AA86: UiA-internt, skjule rad
B87: Resultat etter sikkerhetsmargin og resultatkrav | R87: =R84-R85-R86 -> 46546.56439 | S87: =IF(R87>0,"","OK?") ->  | AA87: UiA-internt, skjule rad
S88: Skrevet ut: | T88: =NOW() -> 2018-11-20T09:30:10.890
B90: TIL INFORMASJON
B92: Spesifiserte indirekte kostnader | H92: Konto | S92: SentralAdm | T92: FakAdm | U92: Arbeidsplass
B93: Sentraladministrasjon | R93: =SUM(S93:V93) -> 13972.05657 | S93: =SUM(S48) -> 13972.05657
B94: Fakultet | R94: =SUM(S94:V94) -> 7702.653206 | T94: =SUM(T48) -> 7702.653206 | AB94: Fra denne arkfanen, undervisning, med bakrgunn i IK tabell (matrise) og IK Ansatt
B95: Arbeidsplass | R95: =U95 -> 15412.0252 | U95: =U48+U62 -> 15412.0252
B96: Student | R96: =SUM(S96:T96) -> 97572.73059 | S96: =S79 -> 67947.95021 | T96: =T79 -> 29624.78038 | U96: 0 | X96: Hvor mye av student IK skal godskrives fakultet? | AB96: Fra arkfane "IK Student"
B97: Sum indirekte kostnader | R97: =SUM(R93:R96) -> 134659.4656 | S97: =SUM(S93:S96) -> 81920.00678 | T97: =SUM(T93:T96) -> 37327.43358 | U97: =SUM(U93:U96) -> 15412.0252
R98: =R97/TotaleKostnader -> 0.522540801 | S98: av totale kostnader
B99: Kan godskrives fakultet:
B100: UiA internt - Indirekte kostnader (ekskl. Arbeidsplass) | R100: =R97-U97 -> 119247.4404 | AA100: UiA-internt, skjule rad
B102: UiA internt - fakultetenes meruttelling i UiAs interne budsjettmodellen | R102: =UiA___finansiert__FS*Antall_deltakere*'IK Student'!W34*(Antall_stp/60) -> 19631.63265 | AA102: UiA-internt, skjule rad
B103: Meruttelling UH ved registrering av finansieringsprosenten (celle H21) i FS (gitt at alle består) | R103: =UiA___finansiert__FS*Antall_deltakere*RBF_kurs*(Antall_stp/60) -> 33163.26531

Sheet INFO KDs-finansieringskategori
B2: Oversikten nedenfor angir nærmere hvordan ulike studier er fordelt på kategorier
B3: (Hentet fra Blå Bok for 2018)
B5: (Fra rapporteringsåret 2010 skal studiepoeng avlagt på videreutdanninger rapporteres i samme kategori som tilsvarende grunnutdanning)
B7: Kategori A
B8: Profesjonsstudiene i medisin og odontologi, veterinærutdanning, kunstakademiet (NTNU),
B9: film- og fjernsynsutdanning (HiL) og scenografi og skuespill (HiØ).
B11: Kategori B
B12: 5-årige masterprogram i arkitektur og industridesign, utøvende kunst- og
B13: musikkutdanninger på lavere og høyere grad, grunnutdanning i produktdesign,
B14: grunnutdanning i animasjon, profesjonsstudiene i psykologi og farmasi, samt
B15: grunnutdanning i ortopediingeniør.
B17: Kategori C
B18: Realfag, teknologi, fiskerifag og kunst på høyere grads nivå, faglærerutdanning i
B19: musikk, dans og drama.
B21: Kategori D
B22: Humanistiske, samfunns- og idrettsvitenskapelige fag på høyere grads nivå, 5-årige
B23: masterprogram i teknologi, bibliotek samt økonomi og administrasjon på høyere grads
B24: nivå. Grunnutdanning i fysioterapi, mensendieck, bioingeniør, ergoterapi, radiografi,
B25: audiografi, døvetolk, reseptar, tannteknikk, tannpleie, fotojournalist, jordmor,
B26: stråleterapi, ABIOK-utdanninger (videreutdanning i anestesi-, barne-, intensiv-,
B27: operasjons- og kreftsykepleie). Visuell kommunikasjon, tekniske mediefag (film- og
B28: fjernsynsproduksjon), grunnskolelærerutdanning, faglærerutdanning i kunst- og
B29: håndtverksfag, allmennlærerutdanning med fordyping i musikk, 5-årig integrert lærerutdanning,
B30: samt årsstudium i praktisk pedagogisk utdanning.
B32: Kategori E
B33: Sykepleier-, vernepleier-, barnevernspedagog-, barnehagelærer, yrkesfaglærer, journalist-,
B34: ingeniør- og dyrepleierutdanning. Profesjonsstudiet i juss, faglærerutdanning i praktisk
B35: estetiske fag, faglærerutdanning i kroppsøving. Teknologisk og maritim utdanning,
B36: realfag, idrettsfag, friluftsfag, kunstfag, landbruksfag, skogfag, husdyrfag og fiskerifag på lavere grads nivå.
B37: Videreutdanning i helsesøster, psykisk helse og tegnspråk.
B39: Kategori F
B40: Humanistiske og samfunnsvitenskapelige fag på lavere grads nivå, økonomi og
B41: administrasjon på lavere grads nivå, revisor-, sosionom- og
B42: bibliotekarutdanning, samt reiseliv og ex. phil.

Sheet Basis
A1: Indirekte kostnader, fordeling Ansatt og Student | K1: Kommentarer
C2: Hentet fra: Input IK fordelt F&U, kol. S
E3: %-fordeling | H3: Fordeling i kroner | K3: Generelt:
C4: Totaler | E4: Utd.årsverk | F4: Student | H4: Utd.årsverk | I4: Student | K4: %-fordeling for utd.årsverk/student er hentet fra TDI-mal, arkfane "Input DBH"
A5: Fakultetsadministrasjonen (kun tall fra utdanning)
A6: Indirekte kostnader for utdanning, ekskl. arbeidsplass | C6: 89003028.07 | E6: =371.6/(371.6+799.5) -> 0.3173085134 | F6: =100%-E6 -> 0.6826914866 | H6: =$C$6*E6 -> 28241418.52 | I6: =$C$6*F6 -> 60761609.55 | K6: Celle E6 hentet fra: Input DBH, AD11/(AD11+AK11) = utd.årsverk
A7: ="Sum "& $A$5 -> Sum Fakultetsadministrasjonen (kun tall fra utdanning) | C7: =SUM(C6) -> 89003028.07 | H7: =H6 -> 28241418.52 | I7: =$I$6 -> 60761609.55
A9: Sentraladministrasjon (kun tall fra utdanning, ekskl. arbeidsplass)
A10: Universitetsbiblioteket | C10: 37231526.45 | E10: =371.6/(371.6+1998.7) -> 0.1567734042 | F10: =100%-E10 -> 0.8432265958 | H10: =$C10*E10 -> 5836913.146 | I10: 31394613.31 | K10: Cell E10 hentet fra: Input DBH, AD11/(AD11+AK33) = utd.årsverk
A11: IT-avdelingen | C11: 22266881.04 | E11: 0 | F11: 1 | H11: =$C11*E11 -> 0 | I11: =$C11*F11 -> 22266881.04 | K11: 100% på Student fordi IT for ansatte/årsverk inngår i arbeidsplassats
A12: Driftsavdelingen (UiA: kr 0 fordi i sin helhet i internhusleie) | C12: 0 | E12: =371.6/(371.6+799.5) -> 0.3173085134 | F12: =100%-E12 -> 0.6826914866 | H12: =$C12*E12 -> 0 | I12: =$C12*F12 -> 0 | K12: Celle E12 hentet fra: Input DBH, AD11/(AD11+AK35) = utd.årsverk
A13: Forskningssekretariat | C13: 0 | K13: 0% pga inngår i sin helhet i IK forskning
A14: Studieadministrasjon | C14: 75942675.81 | E14: 0 | F14: 1 | H14: 0 | I14: =$C14*F14 -> 75942675.81 | K14: Antar at alle kostnader ligger hos student.
A15: Personalavdelingen | C15: 0 | K15: 0% pga inngår i sin helhet i arbeidsplassats
A16: Økonomiavdelingen | C16: 0 | K16: 0% pga inngår i sin helhet i arbeidsplassats
A17: Øvrig sentraladmin. | C17: 34170251.61 | E17: =371.6/(371.6+79.9) -> 0.82303433 | F17: =100%-E17 -> 0.17696567 | H17: 28123290.14 | I17: 6046961.47 | K17: Celle E17 hentet fra: Input DBH, AD11/(AD11+AK40) = utd.årsverk
A18: RegnTekn (UiA) | C18: 20980522.26 | E18: =371.6/(371.6+79.9) -> 0.82303433 | F18: =100%-E18 -> 0.17696567 | H18: 17267690.08 | I18: 3712832.178 | K18: Celle E18 hentet fra: Input DBH, AD11/(AD11+AK40) = utd.årsverk
A19: Sum Sentraladministrasjon | C19: =SUM(C10:C18) -> 190591857.2 | H19: =SUM(H10:H18) -> 51227893.37 | I19: =SUM(I10:I18) -> 139363963.8
A21: Sum Fakultet- og Sentraladministrasjon | C21: =C7+C19 -> 279594885.2 | H21: =H7+H19 -> 79469311.89 | I21: =I7+I19 -> 200125573.4 | K21: Avsjekk: Er C21 her = Input IK fordelt Forskn & Utdan, S11?
A24: Arbeidsplassats
A25: Arbeidsplassats, hentet fra TDI | C25: =94523800*(371.6/621.6) -> 56507471.17 | H25: =C25 -> 56507471.17 | I25: 0 | K25: Celle C25 hentet fra: Input IK fordelt Forskn..., G11*(S8/G7) = arb.pl.kostn. for utd.årsverk
A28: Sum Fakultet- og Sentraladministrasjon samt Arbeidsplassats | C28: =C25+C21 -> 336102356.4 | H28: =H25+H21 -> 135976783.1 | I28: =I25+I21 -> 200125573.4 | K28: Disse spesifiseres videre i arkfanene "IK Ansatt" og "IK Student"
C29: =C28/$C$28 -> 1 | H29: 0.4045695618 | I29: 0.5954304382

Sheet IK Ansatt
A1: Indirekte kostnader - Ansatt
A2: For teknisk og administrativt ansatte, brukes kun arbeidsplasssatsen for indirekte kostnader. | J2: Foreleser (vitenskapelig)
H3: Intern (som forutsatt i TDI-modellen) | K3: Ekstern (ikke grunnlag for IK i TDI-modellen!)
B4: Henført til ansatt | C4: Utd. årsverk | D4: Kostnad per utd. årsverk | G4: % | H4: Beløp | I4: Kommentar | J4: % | K4: Beløp | L4: Kommentar
A5: Fakultetsadministrasjonen
A6: =Basis!A6 -> Indirekte kostnader for utdanning, ekskl. arbeidsplass | B6: =Basis!H6 -> 28241418.52 | C6: ='Input Grunndata'!$C$9 -> 371.6 | D6: =B6/C6 -> 75999.51163 | G6: 1 | H6: =$D$6*G6 -> 75999.51163 | J6: 0 | K6: =D6*J6 -> 0
A7: ="Sum "& $A$5 -> Sum Fakultetsadministrasjonen | B7: =Basis!H7 -> 28241418.52 | D7: =SUM(D6) -> 75999.51163 | H7: =SUM(H6) -> 75999.51163 | K7: =SUM(K6) -> 0
A9: Sentraladministrasjon
A10: =Basis!A10 -> Universitetsbiblioteket | B10: =Basis!H10 -> 5836913.146 | C10: ='Input Grunndata'!$C$9 -> 371.6 | D10: =B10/C10 -> 15707.51654 | G10: 1 | H10: =D10*G10 -> 15707.51654 | J10: 0 | K10: =D10*J10 -> 0
A11: =Basis!A11 -> IT-avdelingen | B11: =Basis!H11 -> 0 | C11: ='Input Grunndata'!$C$9 -> 371.6 | D11: =B11/C11 -> 0 | I11: 100% på student, men inkludert i arbeidsplassats for ansatte
A12: =Basis!A12 -> Driftsavdelingen (UiA: kr 0 fordi i sin helhet i internhusleie) | B12: =Basis!H12 -> 0 | C12: ='Input Grunndata'!$C$9 -> 371.6 | D12: =B12/C12 -> 0 | G12: 1 | H12: =D12*G12 -> 0 | J12: 0 | K12: =D12*J12 -> 0
A13: =Basis!A13 -> Forskningssekretariat | B13: =Basis!H13 -> 0 | C13: ='Input Grunndata'!$C$9 -> 371.6 | D13: =B13/C13 -> 0 | I13: Forskning er ikke aktuelt for utdanning
A14: =Basis!A14 -> Studieadministrasjon | B14: =Basis!H14 -> 0 | C14: ='Input Grunndata'!$C$9 -> 371.6 | D14: =B14/C14 -> 0 | I14: 100% på student
A15: =Basis!A15 -> Personalavdelingen | B15: =Basis!H15 -> 0 | C15: ='Input Grunndata'!$C$9 -> 371.6 | D15: =B15/C15 -> 0 | I15: Inkludert i arbeidsplassatsen
A16: =Basis!A16 -> Økonomiavdelingen | B16: =Basis!H16 -> 0 | C16: ='Input Grunndata'!$C$9 -> 371.6 | D16: 0 | I16: Inkludert i arbeidsplassatsen
A17: =Basis!A17 -> Øvrig sentraladmin. | B17: =Basis!H17 -> 28123290.14 | C17: ='Input Grunndata'!$C$9 -> 371.6 | D17: 75681.6204 | G17: 1 | H17: =D17*G17 -> 75681.6204 | J17: 0 | K17: =D17*J17 -> 0
A18: =Basis!A18 -> RegnTekn (UiA) | B18: =Basis!H18 -> 17267690.08 | C18: ='Input Grunndata'!$C$9 -> 371.6 | D18: 46468.48784 | G18: 1 | H18: =D18*G18 -> 46468.48784 | J18: 0 | K18: =D18*J18 -> 0
A19: =Basis!A19 -> Sum Sentraladministrasjon | B19: =Basis!H19 -> 51227893.37 | D19: =SUM(D10:D18) -> 137857.6248 | H19: =SUM(H10:H18) -> 137857.6248 | K19: =SUM(K10:K18) -> 0
B20: =Basis!H20 -> 0
A21: Sum Fakultet- og Sentraladministrasjon | B21: =B7+B19 -> 79469311.89 | C21: ='Input Grunndata'!$C$9 -> 371.6 | D21: =D7+D19 -> 213857.1364 | H21: =H7+H19 -> 213857.1364
A24: Arbeidsplassats
A25: Arbeidsplassats, hentet fra TDI | B25: =Basis!C25 -> 56507471.17 | C25: ='Input Grunndata'!$C$9 -> 371.6 | D25: =B25/C25 -> 152065.3153 | G25: 1 | H25: =$D$25*G25 -> 152065.3153 | J25: 0 | K25: =D25*J25 -> 0
A28: Sum Fakultet- og Sentraladministrasjon samt Arbeidsplassats | B28: =B25+B21 -> 135976783.1 | C28: ='Input Grunndata'!$C$9 -> 371.6 | D28: 365922.4517 | H28: =H25+H21 -> 365922.4517 | K28: =K25+K21 -> 0
A32: Total
A33: Fakultetsadministrasjon | D33: =D7 -> 75999.51163 | H33: =H7 -> 75999.51163 | K33: =K7 -> 0
A34: Sentraladministrasjon | D34: =D19 -> 137857.6248 | H34: =H19 -> 137857.6248 | K34: =K19 -> 0
A35: Arbeidsplassats | D35: =D25 -> 152065.3153 | H35: =H25 -> 152065.3153 | K35: =K25 -> 0
A36: Sum | D36: =SUM(D33:D35) -> 365922.4517 | H36: =SUM(H33:H35) -> 365922.4517 | K36: =SUM(K33:K35) -> 0
A38: Timesats for indirekte kostnader
A39: =A33 -> Fakultetsadministrasjon | D39: =D7/Årsv_Høy -> 46.6827467 | H39: =H7/Årsv_Høy -> 46.6827467 | K39: =K7/Årsv_Høy -> 0
A40: Sentraladministrasjon | D40: =D19/Årsv_Høy -> 84.6791307 | H40: =H19/Årsv_Høy -> 84.6791307 | K40: =K19/Årsv_Høy -> 0
A41: Arbeidsplassats | D41: =D25/Årsv_Høy -> 93.40621334 | H41: =H25/Årsv_Høy -> 93.40621334 | K41: =K25/Årsv_Høy -> 0
A42: Sum | D42: =SUM(D39:D41) -> 224.7680907 | H42: =SUM(H39:H41) -> 224.7680907 | K42: =SUM(K39:K41) -> 0

Sheet IK Student
A1: Indirekte kostnader - Student | Q1: SKJULES - UiA spesifikt
H2: Student - Fordeling på kostnadsdrivere | Q2: 1 | R2: =Q2+1 -> 2 | S2: 3 | T2: 4 | U2: 5 | V2: 6 | W2: 7 | X2: 8 | Y2: 9 | Z2: 10 | AA2: 11 | AB2: 12 | AC2: 13 | AD2: 14 | AE2: 15 | AF2: 16
H3: 1. Kurs/emne | J3: 2. Studiepoeng | L3: 3. Deltakere
B4: Henført til student | D4: Kostnader som ikke er relevante for EVU | E4: Gjenstående beløp | F4: Kommentar | H4: % | I4: Beløp | J4: % | K4: Beløp | L4: % | M4: Beløp | O4: Kommentarer
A5: Fakultetsadministrasjonen
A6: Indirekte kostnader for utdanning, ekskl. arbeidsplass | B6: =Basis!I6 -> 60761609.55 | E6: =B6-D6 -> 60761609.55 | F6: se kolonne O | H6: 0 | I6: =H6*$E6 -> 0 | J6: 1 | K6: =J6*$E6 -> 60761609.55 | L6: 0 | M6: =L6*$E6 -> 0 | O6: Celle D6: Reduserer TA-årsverk i BFV som er parallell til… (Se Grunndata...)
A7: ="Sum "& $A$5 -> Sum Fakultetsadministrasjonen | B7: =Basis!I7 -> 60761609.55 | C7: =B7/$B$22 -> 0.3036174164 | E7: =SUM(E6) -> 60761609.55 | I7: =SUM(I6) -> 0 | K7: =SUM(K6) -> 60761609.55 | M7: =SUM(M6) -> 0
A9: Sentraladministrasjon
A10: =Basis!A10 -> Universitetsbiblioteket | B10: =Basis!I10 -> 31394613.31 | D10: 0 | E10: =B10-D10 -> 31394613.31 | H10: 0 | I10: =H10*$E10 -> 0 | J10: 1 | K10: =J10*$E10 -> 31394613.31 | L10: 0 | M10: =L10*$E10 -> 0 | O10: Bør det reduseres i kolonne D? Neppe…
A11: =Basis!A11 -> IT-avdelingen | B11: =Basis!I11 -> 22266881.04 | D11: 0 | E11: =B11-D11 -> 22266881.04 | H11: 0 | I11: =H11*$E11 -> 0 | J11: 1 | K11: =J11*$E11 -> 22266881.04 | L11: 0 | M11: =L11*$E11 -> 0 | O11: Bør det reduseres i kolonne D? Neppe…
A12: =Basis!A12 -> Driftsavdelingen (UiA: kr 0 fordi i sin helhet i internhusleie) | B12: =Basis!I12 -> 0 | D12: 0 | E12: =B12-D12 -> 0 | H12: 0 | I12: =H12*$E12 -> 0 | J12: 1 | K12: =J12*$E12 -> 0 | L12: 0 | M12: =L12*$E12 -> 0 | O12: Bør det reduseres i kolonne D? Neppe…
A13: =Basis!A13 -> Forskningssekretariat | B13: =Basis!I13 -> 0 | D13: 0 | E13: =B13-D13 -> 0
A14: =Basis!A14 -> Studieadministrasjon | B14: =Basis!I14 -> 75942675.81 | D14: 0 | E14: 75942675.81 | H14: 0 | I14: =H14*$E14 -> 0 | J14: 1 | K14: =J14*$E14 -> 75942675.81 | L14: 0 | M14: =L14*$E14 -> 0 | O14: Bør det reduseres i kolonne D? Neppe…
A15: =Basis!A15 -> Personalavdelingen | B15: =Basis!I15 -> 0 | D15: 0 | E15: 0
A16: =Basis!A16 -> Økonomiavdelingen | B16: =Basis!I16 -> 0 | D16: 0 | E16: 0
A17: =Basis!A17 -> Øvrig sentraladmin. | B17: =Basis!I17 -> 6046961.47 | D17: 0 | E17: 6046961.47 | H17: 0 | I17: =H17*$E17 -> 0 | J17: 1 | K17: =J17*$E17 -> 6046961.47 | L17: 0 | M17: =L17*$E17 -> 0 | O17: Bør det reduseres i kolonne D? Neppe…
A18: =Basis!A18 -> RegnTekn (UiA) | B18: =Basis!I18 -> 3712832.178 | D18: 0 | E18: 3712832.178 | H18: 0 | I18: 0 | J18: 1 | K18: =J18*$E18 -> 3712832.178 | L18: 0 | M18: =L18*$E18 -> 0 | O18: Bør det reduseres i kolonne D? Neppe…
A19: =Basis!A19 -> Sum Sentraladministrasjon | B19: =Basis!I19 -> 139363963.8 | C19: =B19/$B$22 -> 0.6963825836 | E19: =SUM(E10:E18) -> 139363963.8 | I19: =SUM(I10:I18) -> 0 | K19: =SUM(K10:K18) -> 139363963.8 | M19: =SUM(M10:M18) -> 0
A22: Sum Fakultet- og Sentraladministrasjon | B22: =SUM(B7,B19) -> 200125573.4 | C22: =B22/$B$22 -> 1 | E22: =SUM(E7,E19) -> 200125573.4 | H22: =I22/$B$22 -> 0 | I22: =I7+I19 -> 0 | J22: =K22/$B$22 -> 1 | K22: =K7+K19 -> 200125573.4 | L22: =M22/$B$22 -> 0 | M22: =M7+M19 -> 0
M23: =IF(SUM(I22,K22,M22)<>E22,"FEIL I SUMMERINGER","") -> 
A25: Henføring til EVU
L26: Antall deltakere (unike)
D27: EVU's andeler | H27: Antall emner | J27: Studiepoengproduksjon
D28: EVU | I28: ='Input Grunndata'!C16 -> 89 | K28: ='Input Grunndata'!C15 -> 461.5 | M28: 1400
D29: UiA totalt (Inkl. EVU) | I29: ='Input Grunndata'!C11 -> 1450 | K29: ='Input Grunndata'!C10 -> 8546 | M29: ='Input Grunndata'!C6 -> 12713
D30: Prosentandel EVU | I30: =I28/I29 -> 0.06137931034 | K30: =K28/K29 -> 0.05400187222 | M30: =M28/M29 -> 0.1101234956 | S30: Beregning av fradrag ift. fin.sats | V30: Studievekt | W30: Total
D31: Kostnad henført til EVU | I31: =I30*I22 -> 0 | K31: =K$22*K30 -> 10807155.64 | M31: =M$22*M30 -> 0 | S31: Stykkpris resultatpoeng | U31: ='Input Grunndata'!C18 -> 189 | V31: =VLOOKUP('Budsjettmodell for EVU'!C20,StudieKat[],2,0) -> 1 | W31: =U31*V31 -> 189
S32: Tildeling per VK poeng | U32: ='Input Grunndata'!C19 -> 195.78 | V32: =VLOOKUP('Budsjettmodell for EVU'!C20,StudieKat[],2,0) -> 1 | W32: =U32*V32 -> 195.78
D33: Kostnad per driver | I33: Per emne | J33: Per studiepoeng per deltaker | M33: Per deltaker | S33: Per studiepoeng | U33: =SUM(U31:U32) -> 384.78 | V33: =VLOOKUP('Budsjettmodell for EVU'!C20,StudieKat[],2,0) -> 1 | W33: =SUM(W31:W32) -> 384.78
D34: Utgangspunkt | I34: =I31/I$28 -> 0 | K34: =K31/K$28/60 -> 390.2909224 | M34: =M31/M$28 -> 0 | S34: Per SPE (60 stp) | W34: =W33*60 -> 23086.8
D35: Fradrag ift. UiAs finansieringssats (%) | I35: 0 | K35: 0 | M35: =AD35 -> 0
D36: Sum | I36: =I34-I35 -> 0 | K36: =K34-K35 -> 390.2909224 | M36: =M34-M35 -> 0
D39: Indirekte kostnad - Student - for gjeldende kurs | I39: =I34*$B$42 -> 0 | K39: =K36*$B$43*$B$44 -> 97572.73059 | M39: =(M34-$M$35)*$B$44 -> 0
A41: Info om gjeldende kurs | D41: Fordeling per driver
A42: Antall kurs (alltid 1) | B42: 1 | D42: Kurs | E42: =I39 -> 0 | F42: =E42/$E$45 -> 0
A43: Antall studiepoeng | B43: =Antall_stp -> 10 | D43: Studiepoeng | E43: =K39 -> 97572.73059 | F43: 1
A44: Antall deltakere | B44: =Antall_deltakere -> 25 | D44: Deltakere | E44: =M39 -> 0 | F44: 0 | I44: Total IK per student: | K44: =E45/B44 -> 3902.909224
D45: Sum | E45: =SUM(E42:E44) -> 97572.73059 | F45: 1
D46: Fakultetsadm. | E46: =E45*C7 -> 29624.78038 | F46: =E46/$E$45 -> 0.3036174164
D47: Sentraladm. | E47: =E45*C19 -> 67947.95021 | F47: =E47/$E$45 -> 0.6963825836

Sheet Input Grunndata
A1: Senest oppdatert | B1: Dato: | L1: SKJULES - UiA spesifikt
B2: Hvem: | L2: 1 | M2: =L2+1 -> 2 | N2: 3 | O2: 4 | P2: 5
A4: Grunndata | B4: fra | E4: Kommentarer
A5: Antall studenter - heltid (Inkludert EVU) | B5: 2016 | C5: 11290 | E5: Brukes ikke - kan være 0, DBH
A6: Totalt antall studenter | B6: 2016 | C6: 12713 | E6: DBH (OBS! Denne malen krever at C6 minst må være 1)
A7: Timer per Årsverk lav (brukes på prosjektadm) sats | C7: 1628 | E7: UiA hør med EVU ift timeføring. | F7: UiA kan bruke 1 628 hvis de ikke fører timer når de er syke
A8: Timer per Årsverk høy sats | C8: 1628 | E8: UiA bruker kun 1 628. Ikke 1 687,5
A9: Utdanningsårsverk | B9: 2016 | C9: 371.6 | E9: TDI: Input IK fordelt Forskn & Utdan, celle S8
A10: Totalt antall 60 SPE (Studiepoengproduksjon fra DBH) | B10: 2016 | C10: 8546 | E10: DBH (= TDI: Input DBH, celle AI11)
A11: Antall emner | B11: 2014 | C11: 1450 | E11: Brukes ikke, men må minst være 1: UiA - hentet fra FS. Inkluderer EVU (1453, avrundet til 1450)
A12: EVU-data
A13: Antall deltakere EVU | B13: 2015 | C13: 1400 | E13: Brukes ikke - kan være 0: UiA - duplikater er tatt vekk (opprinnelig/brutto 2075)
A14: Antall studenter eksternfinansiert | B14: 2016 | C14: 1291 | E14: Brukes ikke - kan være 0: fra DBH, men ikke nødvendigvis et godt tall på EVU studenter, men kan gi en pekepinne.
A15: Studiepoengproduksjon, EVU | B15: 2016 | C15: 461.5 | E15: UiA: DBH; Studiepoengproduksjon fordelt på studieprogram som emnet tilhører. EVU er definer som alle program som er eksternfinansierte dvs. har programkode FB, FN, HV eller V i FS.
A16: Antall studieprogram og emner | B16: 2014 | C16: 89 | E16: Brukes ikke, men må minst være 1: UiA: FS, Ingvild Mulen hentet ut 17.02.2016 | M16: Studiekategori | N16: Vekting
A17: Annet | G17: SKJULES - UiA internt | M17: T1 | N17: 1
A18: Stykkpris resultatpoeng | B18: 2016 | C18: 189 | E18: UiA internt, hentet fra tabellverket 2016 | G18: SKJULES - UiA internt | M18: S1 | N18: 1.25
A19: Tildeling per VK-poeng | B19: 2016 | C19: 195.78 | E19: UiA internt, hentet fra tabellverket 2016 | G19: SKJULES - UiA internt | M19: S2 | N19: 1.65
M20: P1 | N20: 1.35
M21: SP1 | N21: 1.45
M22: SP2 | N22: 1.9
M23: U1 | N23: 4
M24: Hentet fra tabellverket 2016, emneporteføljen
A25: SKJULES - UiA spesifikt | D25: 1
A26: Plusser på utdanningsårsverk som er trukket ut i TDI | B26: (Se arket "Gjenstår" for data) | D26: =D25+1 -> 2
A27: Dette gjelder ressurser til EVU, (Som kom under BOA del i TDI). | D27: 3
A28: HUMPED | B28: 0 | D28: 4
A29: HH | B29: 0 | D29: 5
A30: SV | B30: 0 | D30: 6
A31: TEKREAL | B31: 0 | D31: 7
A32: HI | B32: 0 | D32: 8
A33: KUNST | B33: 0 | D33: 9
A34: SUM | B34: =SUM(B28:B33) -> 0 | D34: 10
A35: SKJULES - UiA spesifikt | D35: 11

Sheet Beregnet IK tabell
A1: Matrise for Indirekte Kostnader - per time
A2: Vit eller T/A | B2: E/I | C2: Felles | D2: Fakultet | E2: Arbeidsplass | F2: Sum
A3: T/A | B3: I | C3: 0 | D3: 0 | E3: ='IK Ansatt'!H41 -> 93.40621334 | F3: =SUM(C3:E3) -> 93.40621334
A4: T/A | B4: E | C4: 0 | D4: 0 | E4: 0 | F4: =SUM(C4:E4) -> 0
A5: VIT | B5: I | C5: ='IK Ansatt'!H40 -> 84.6791307 | D5: ='IK Ansatt'!H39 -> 46.6827467 | E5: ='IK Ansatt'!H41 -> 93.40621334 | F5: =SUM(C5:E5) -> 224.7680907
A6: VIT | B6: E | C6: ='IK Ansatt'!K40 -> 0 | D6: ='IK Ansatt'!K39 -> 0 | E6: ='IK Ansatt'!K41 -> 0 | F6: =SUM(C6:E6) -> 0
A9: Kun beregninger - "bare se men ikke røre" :-)

Sheet Input UH finansieringssats
B1: 0.4
A2: Kategori | B2: RBF | C2: Basis | D2: Totalt | F2: Erstatt neste år ved nyttår
A3: A | B3: 153000 | C3: 230000 | D3: =Tabell7[[#This Row],[RBF]]+Tabell7[[#This Row],[Basis]] -> 383000
A4: B | B4: 115000 | C4: 173000 | D4: =Tabell7[[#This Row],[RBF]]+Tabell7[[#This Row],[Basis]] -> 288000
A5: C | B5: 79000 | C5: 118000 | D5: =Tabell7[[#This Row],[RBF]]+Tabell7[[#This Row],[Basis]] -> 197000
A6: D | B6: 55000 | C6: 83000 | D6: =Tabell7[[#This Row],[RBF]]+Tabell7[[#This Row],[Basis]] -> 138000
A7: E | B7: 47000 | C7: 71000 | D7: =Tabell7[[#This Row],[RBF]]+Tabell7[[#This Row],[Basis]] -> 118000
A8: F | B8: 39000 | C8: 59000 | D8: =Tabell7[[#This Row],[RBF]]+Tabell7[[#This Row],[Basis]] -> 98000
A9: *tall 2017 | D9: =Tabell7[[#This Row],[RBF]]+Tabell7[[#This Row],[Basis]] -> 0
A11: Beregning av finansierings% i FS for studier som starter fom. 2008
A12: Fyll ut de hvite cellene.
A14: Kategori: | B14: ='Budsjettmodell for EVU'!$C$21 -> F
A16: Studentbetaling: | B16: ='Budsjettmodell for EVU'!$C$12 -> 13000 | C16: pr. stk.
A17: Betalt av andre: | B17: ='Budsjettmodell for EVU'!R30-'Budsjettmodell for EVU'!R24-'Budsjettmodell for EVU'!R27 -> 0 | C17: totalt
A19: Antall studenter: | B19: ='Budsjettmodell for EVU'!$C$11 -> 25
A20: Antall studiepoeng: | B20: ='Budsjettmodell for EVU'!$C$19 -> 10
A22: Sum i kategorien | B22: =SUMIF(A3:A9,B14,D3:D9) -> 98000 | C22: herav RBF | D22: =SUMIF(A3:A9,B14,B3:B9) -> 39000 | E22: dette inngår nederst i "Kalkulasjonsmal" (rad 103)
A23: Studentfinansiert: | B23: =IF(B14=0,"legg inn kategori",IF(B20=0,"legg inn studiepoeng",(B16+IF(B17=0,0,B17/B19))/B20*60/B22)) -> 0.7959183673 | D23: =((B22/60)*B20-B16)*B19-B17 -> 83333.33333 | E23: =IF('Budsjettmodell for EVU'!H21>0.0001,"Resterende finansiering") -> Resterende finansiering
A25: UiA - finansiert (hvis reg. i FS): | B25: =IF(B23>100%,0,IF(B23="legg inn kategori","Legg inn kategori",IF(B23="legg inn studiepoeng","Legg inn studiepoeng",1-B23))) -> 0.2040816327 | E25: (Dette tallet legges inn som finansierings% i FS)

Sheet Input A-tabellen
A1: DET KGL. KOMMUNAL- OG MODERNISERINGSDEPARTEMENT
A2: Hovedlønnstabell for arbeidstakere i staten gjeldende fra 1.mai 2017 | J2: Tabell A - HOVEDLØNNSTABELL
A4: Kolonne1 | B4: Kolonne2 | C4: Kolonne3 | D4: Kolonne4 | E4: Kolonne5 | F4: Kolonne6 | G4: Kolonne7 | H4: Kolonne8 | I4: Kolonne9 | J4: Kolonne10 | K4: Kolonne11 | L4: Kolonne12 | M4: Kolonne13 | N4: Kolonne14
B5: 1 | C5: 2 | D5: 3 | E5: 4 | F5: 5 | G5: 6 | H5: 7 | I5: 8 | J5: 9 | L5: 10 | M5: 11 | N5: 12
A6: Lønns-trinn | B6: Brutto- | C6: Bruttolønn - OU 2) | F6: Pensjonsinnskudd 3) | H6: Nettolønn | K6: Lønns-trinn | L6: Overtids- | N6: 45% natt-tidskompensasjon 5)
B7: lønn 1) | L7: godtgjørelse 4)
B8: Pr. år | C8: Pr. år | D8: Pr. mnd. | E8: Pr. dag | F8: Pr. år | G8: Pr. mnd | H8: Pr. år | I8: Pr. mnd | J8: Pr. dag | L8: 50 % | M8: 100 %
A9: 19 | B9: 291200 | C9: =B9-400 -> 290800 | D9: Harry: Lagt inn Kolonne C = (Kolonne B - 300) Sjekk at dette ble riktig:
A10: 20 | B10: 294700 | C10: 294300
A11: 21 | B11: 298400 | C11: 298000
A12: 22 | B12: 302000 | C12: 301600
A13: 23 | B13: 305800 | C13: 305400
A14: 24 | B14: 309700 | C14: 309300
A15: 25 | B15: 313800 | C15: 313400
A16: 26 | B16: 317900 | C16: 317500
A17: 27 | B17: 321800 | C17: 321400
A18: 28 | B18: 325700 | C18: 325300
A19: 29 | B19: 329400 | C19: 329000
A20: 30 | B20: 333300 | C20: 332900
A21: 31 | B21: 336900 | C21: 336500
A22: 32 | B22: 340900 | C22: 340500
A23: 33 | B23: 344700 | C23: 344300
A24: 34 | B24: 348800 | C24: 348400
A25: 35 | B25: 352900 | C25: 352500
A26: 36 | B26: 357100 | C26: 356700
A27: 37 | B27: 361700 | C27: 361300
A28: 38 | B28: 366400 | C28: 366000
A29: 39 | B29: 371000 | C29: 370600
A30: 40 | B30: 376000 | C30: 375600
A31: 41 | B31: 381000 | C31: 380600
A32: 42 | B32: 386700 | C32: 386300
A33: 43 | B33: 392100 | C33: 391700
A34: 44 | B34: 398100 | C34: 397700
A35: 45 | B35: 404000 | C35: 403600
A36: 46 | B36: 410000 | C36: 409600
A37: 47 | B37: 416600 | C37: 416200
A38: 48 | B38: 423200 | C38: 422800
A39: 49 | B39: 430100 | C39: 429700
A40: 50 | B40: 436900 | C40: 436500
A41: 51 | B41: 443900 | C41: =B41-400 -> 443500
A42: 52 | B42: 451300 | C42: 450900
A43: 53 | B43: 459100 | C43: 458700
A44: 54 | B44: 466500 | C44: 466100
A45: 55 | B45: 474700 | C45: 474300
A46: 56 | B46: 482500 | C46: 482100
A47: 57 | B47: 490900 | C47: 490500
A48: 58 | B48: 499600 | C48: 499200
A49: 59 | B49: 508800 | C49: 508400
A50: 60 | B50: 517700 | C50: 517300
A51: 61 | B51: 527500 | C51: 527100
A52: 62 | B52: 537700 | C52: 537300
A53: 63 | B53: 548200 | C53: 547800
A54: 64 | B54: 558500 | C54: 558100
A55: 65 | B55: 569000 | C55: 568600
A56: 66 | B56: 579300 | C56: 578900
A57: 67 | B57: 590000 | C57: 589600
A58: 68 | B58: 600200 | C58: 599800
A59: 69 | B59: 611700 | C59: 611300
A60: 70 | B60: 623900 | C60: 623500
A61: 71 | B61: 638700 | C61: 638300
A62: 72 | B62: 650200 | C62: 649800
A63: 73 | B63: 661700 | C63: 661300
A64: 74 | B64: 673800 | C64: 673400
A65: 75 | B65: 686900 | C65: 686500
A66: 76 | B66: 704800 | C66: 704400
A67: 77 | B67: 722400 | C67: 722000
A68: 78 | B68: 745600 | C68: 745200
A69: 79 | B69: 769100 | C69: 768700
A70: 80 | B70: 792700 | C70: 792300
A71: 81 | B71: 815800 | C71: 815400
A72: 82 | B72: 838300 | C72: 837900
A73: 83 | B73: 860500 | C73: =B73-400 -> 860100
A74: 84 | B74: 882900 | C74: 882500
A75: 85 | B75: 910900 | C75: 910500
A76: 86 | B76: 938700 | C76: 938300
A77: 87 | B77: 966900 | C77: 966500
A78: 88 | B78: 989000 | C78: 988600
A79: 89 | B79: 1011400 | C79: 1011000
A80: 90 | B80: 1033700 | C80: 1033300
A81: 91 | B81: 1056300 | C81: 1055900
A82: 92 | B82: 1078400 | C82: 1078000
A83: 93 | B83: 1100800 | C83: 1100400
A84: 94 | B84: 1123100 | C84: 1122700
A85: 95 | B85: 1145600 | C85: 1145200
A86: 96 | B86: 1167400 | C86: 1167000
A87: 97 | B87: 1189300 | C87: 1188900
A88: 98 | B88: 1211300 | C88: 1210900
A89: 99 | B89: 1232300 | C89: 1231900
A90: 100 | B90: 1253100 | C90: 1252700
A91: 101 | B91: 1274100 | C91: 1273700
A93: 1) Bruttolønn inklusiv avgift på kr 300,- pr år til OU-midler
A94: 2) Bruttolønn eksklusiv avgift på kr 300,- pr år til OU-midler
A95: 3) Folketrygdens grunnbeløp pr 1. mai 2015 fastsettes i slutten av mai 2015.
A96: 4) Jf fellesbestemmelsens § 2 nr 3
A97: 5) Jf fellesbestemmelsens § 15 nr 1

Sheet Input C-tabellen
A1: Ltr. | B1: C-tabellen | C1: Kolonne1 | F1: Timelønn 35,5 time pr uke 1850 timer
B2: Brutto
B3: 37,5 t/uke (per 01.05.17)
A4: 1-18 | B4: 1 | E4: Harry: Alternativt, IKKE benyttet
A5: 19 | B5: 149.1 | C5: Harry: Sjekk at dette er riktig: "Timelønn 37,5 time pr uke 1950 timer" | F5: 157.2
A6: 20 | B6: 150.9 | F6: 159.1
A7: 21 | B7: 152.8 | F7: 161.1
A8: 22 | B8: 154.7 | F8: 163
A9: 23 | B9: 156.6 | F9: 165.1
A10: 24 | B10: 158.6 | F10: 167.2
A11: 25 | B11: 160.7 | F11: 169.4
A12: 26 | B12: 162.8 | F12: 171.6
A13: 27 | B13: 164.8 | F13: 173.7
A14: 28 | B14: 166.8 | F14: 175.8
A15: 29 | B15: 168.7 | F15: 177.8
A16: 30 | B16: 170.7 | F16: 179.9
A17: 31 | B17: 172.6 | F17: 181.9
A18: 32 | B18: 174.6 | F18: 184.1
A19: 33 | B19: 176.6 | F19: 186.1
A20: 34 | B20: 178.7 | F20: 188.3
A21: 35 | B21: 180.8 | F21: 190.5
A22: 36 | B22: 182.9 | F22: 192.8
A23: 37 | B23: 185.3 | F23: 195.3
A24: 38 | B24: 187.7 | F24: 197.8
A25: 39 | B25: 190.1 | F25: 200.3
A26: 40 | B26: 192.6 | F26: 203
A27: 41 | B27: 195.2 | F27: 205.7
A28: 42 | B28: 198.1 | F28: 208.8
A29: 43 | B29: 200.9 | F29: 211.7
A30: 44 | B30: 203.9 | F30: 215
A31: 45 | B31: 207 | F31: 218.2
A32: 46 | B32: 210.1 | F32: 221.4
A33: 47 | B33: 213.4 | F33: 225
A34: 48 | B34: 216.8 | F34: 228.5
A35: 49 | B35: 220.4 | F35: 232.3
A36: 50 | B36: 223.8 | F36: 235.9
A37: 51 | B37: 227.4 | F37: 239.7
A38: 52 | B38: 231.2 | F38: 243.7
A39: 53 | B39: 235.2 | F39: 247.9
A40: 54 | B40: 239 | F40: 251.9
A41: 55 | B41: 243.2 | F41: 256.4
A42: 56 | B42: 247.2 | F42: 260.6
A43: 57 | B43: 251.5 | F43: 265.1
A44: 58 | B44: 256 | F44: 269.8
A45: 59 | B45: 260.7 | F45: 274.8
A46: 60 | B46: 265.3 | F46: 279.6
A47: 61 | B47: 270.3 | F47: 284.9
A48: 62 | B48: 275.5 | F48: 290.4
A49: 63 | B49: 280.9 | F49: 296.1
A50: 64 | B50: 286.2 | F50: 301.7
A51: 65 | B51: 291.6 | F51: 307.4
A52: 66 | B52: 296.9 | F52: 312.9
A53: 67 | B53: 302.4 | F53: 318.7
A54: 68 | B54: 307.6 | F54: 324.2
A55: 69 | B55: 313.5 | F55: 330.4
A56: 70 | B56: 319.7 | F56: 337
A57: 71 | B57: 327.3 | F57: 345
A58: 72 | B58: 333.2 | F58: 351.2
A59: 73 | B59: 339.1 | F59: 357.5
A60: 74 | B60: 345.3 | F60: 364
A61: 75 | B61: 352.1 | F61: 371.1
A62: 76 | B62: 361.2 | F62: 380.8
A63: 77 | B63: 370.3 | F63: 390.3
A64: 78 | B64: 382.2 | F64: 402.8
A65: 79 | B65: 394.2 | F65: 415.5
A66: 80 | B66: 406.3 | F66: 428.3
A67: 81 | B67: 418.2 | F67: 440.8
A68: 82 | B68: 429.7 | F68: 452.9
A69: 83 | B69: 441.1 | F69: 464.9
A70: 84 | B70: 452.6 | F70: 477
A71: 85 | B71: 466.9 | F71: 492.2
A72: 86 | B72: 481.2 | F72: 507.2
A73: 87 | B73: 495.6 | F73: 522.4
A74: 88 | B74: 507 | F74: 534.4
A75: 89 | B75: 518.5 | F75: 546.5
A76: 90 | B76: 529.9 | F76: 558.5
A77: 91 | B77: 541.5 | F77: 570.8
A78: 92 | B78: 552.8 | F78: 582.7
A79: 93 | B79: 564.3 | F79: 594.8
A80: 94 | B80: 575.7 | F80: 606.9
A81: 95 | B81: 587.3 | F81: 619
A82: 96 | B82: 598.5 | F82: 630.8
A83: 97 | B83: 609.7 | F83: 642.6
A84: 98 | B84: 621 | F84: 654.5
A85: 99 | B85: 631.7 | F85: 665.9
A86: 100 | B86: 642.4 | F86: 677.1
A87: 101 | B87: 653.2 | F87: 688.5

Sheet INFO KD's finansieringskategori (hidden)
B2: Oversikten nedenfor angir nærmere hvordan ulike studier er fordelt på kategorier (Hentet fra Blå Bok for 2016)
B4: (Fra rapporteringsåret 2010 skal studiepoeng avlagt på videreutdanninger rapporteres i samme kategori som tilsvarende grunnutdanning)
B7: Kategori A
B8: Profesjonsstudiene i medisin og odontologi, veterinærutdanning, kunstakademiet (NTNU),
B9: film- og fjernsynsutdanning (HiL) og scenografi og skuespill (HiØ).
B11: Kategori B
B12: 5-årige masterprogram i arkitektur og industridesign, utøvende kunst- og
B13: musikkutdanninger på lavere og høyere grad, grunnutdanning i produktdesign,
B14: grunnutdanning i animasjon, profesjonsstudiene i psykologi og farmasi, samt
B15: grunnutdanning i ortopediingeniør.
B17: Kategori C
B18: Realfag, teknologi, fiskerifag og kunst på høyere grads nivå, faglærerutdanning i
B19: musikk, dans og drama.
B21: Kategori D
B22: Humanistiske, samfunns- og idrettsvitenskapelige fag på høyere grads nivå, 5-årige
B23: masterprogram i teknologi, bibliotek samt økonomi og administrasjon på høyere grads
B24: nivå. Grunnutdanning i fysioterapi, mensendieck, bioingeniør, ergoterapi, radiografi,
B25: audiografi, døvetolk, reseptar, tannteknikk, tannpleie, fotojournalist, jordmor,
B26: stråleterapi, ABIOK-utdanninger (videreutdanning i anestesi-, barne-, intensiv-,
B27: operasjons- og kreftsykepleie). Visuell kommunikasjon, tekniske mediefag (film- og
B28: fjernsynsproduksjon), grunnskolelærerutdanning, faglærerutdanning i kunst- og
B29: håndtverksfag, allmennlærerutdanning med fordyping i musikk, 5-årig integrert lærerutdanning, samt årsstudium i
B30: praktisk pedagogisk utdanning.
B32: Kategori E
B33: Sykepleier-, vernepleier-, barnevernspedagog-, allmennlærer-, førskolelærer-, yrkesfaglærer, journalist-,
B34: ingeniør- og dyrepleierutdanning. Profesjonsstudiet i juss, faglærerutdanning i praktisk
B35: estetiske fag, faglærerutdanning i kroppsøving. Teknologisk og maritim utdanning,
B36: realfag, idrettsfag, friluftsfag, kunstfag, landbruksfag, skogfag, husdyrfag og fiskerifag på lavere grads nivå. Videreutdanning i
B37: helsesøster, psykisk helse og tegnspråk.
B39: Kategori F
B40: Humanistiske og samfunnsvitenskapelige fag på lavere grads nivå, økonomi og
B41: administrasjon på lavere grads nivå, revisor-, sosionom- og
B42: bibliotekarutdanning, samt reiseliv og ex. phil.
